bitfinex/quotes_SOLUSD_20240714
["timestamp","ask_amount","ask_price","bid_price","bid_amount"]
[1720973835459,6.8437,146.12,146.08,11.05]
[1720973836154,11.05,146.13,146.08,11.05]
[1720973836669,17.8933,146.13,146.08,11.05]
[1720973837556,17.8933,146.13,146.03,15.6672]
[1720973837557,6.8442,146.11,146.07,11.05]
[1720973837859,11.05,146.11,146.06,11.05]
[1720973839663,11.05,146.11,146.03,15.6672]
[1720973839862,11.05,146.11,146.04,45.0]
[1720973840055,11.05,146.11,146.06,11.05]
[1720973841045,17.8938,146.12,146.07,11.05]
[1720973841955,6.8443,146.11,146.04,45.0]
[1720973842164,17.8943,146.11,146.06,11.05]
[1720973842568,11.05,146.11,146.06,11.05]
[1720973846451,11.05,146.1,146.05,11.05]
[1720973849373,11.05,146.1,146.06,11.05]
[1720973849571,11.05,146.11,146.06,11.05]
[1720973849752,16.4948,146.14,146.04,45.0]
[1720973849955,11.05,146.11,146.04,45.0]
[1720973850181,11.05,146.11,146.06,11.05]
[1720973850360,11.05,146.1,146.05,11.05]
[1720973851872,6.8442,146.11,146.03,15.6672]
[1720973852087,11.05,146.08,146.03,11.05]
[1720973852669,11.05,146.08,146.01,0.2]
[1720973852987,11.05,146.08,146.03,11.05]
[1720973854097,11.05,146.08,146.01,0.2]
[1720973854266,6.8446,146.1,146.01,0.2]
[1720973854267,22.1985,146.07,146.01,0.2]
[1720973854586,11.05,146.06,146.01,11.25]
[1720973854776,22.1985,146.07,146.01,11.25]
[1720973854956,33.2485,146.07,146.02,11.05]
[1720973855671,11.05,146.06,146.01,11.25]
[1720973856278,33.2485,146.07,146.02,11.05]
[1720973856483,22.1985,146.07,146.02,11.05]
[1720973856789,11.05,146.06,146.01,11.25]
[1720973857164,33.2485,146.07,146.02,11.05]
[1720973859778,11.05,146.06,146.01,11.25]
[1720973862387,11.05,146.05,146.01,0.2]
[1720973862558,11.05,146.04,146.01,0.2]
[1720973863461,33.2485,146.03,146.01,0.2]
[1720973864408,11.05,146.02,146.01,0.2]
[1720973866101,33.2485,146.03,146.01,0.2]
[1720973866292,22.1985,146.03,146.01,0.2]
[1720973866492,33.2485,146.03,146.01,0.2]
[1720973866695,22.1985,146.03,146.01,0.2]
[1720973867007,33.2485,146.03,146.01,0.2]
[1720973869705,11.05,146.02,146.01,0.2]
[1720973875409,17.8983,146.02,146.01,0.2]
[1720973877303,6.8483,146.02,146.01,0.2]
[1720973877510,17.8983,146.02,146.01,0.2]
[1720973878513,28.9483,146.02,146.01,0.2]
[1720973878812,17.8983,146.02,146.01,0.2]
[1720973881019,22.1985,146.03,146.01,0.2]
[1720973881395,11.05,146.02,146.01,0.2]
[1720973883706,17.8983,146.02,146.01,0.2]
[1720973885204,29.0465,146.03,146.01,0.2]
[1720973885405,11.05,146.02,146.01,0.2]
[1720973887531,17.8983,146.02,146.01,0.2]
[1720973891026,6.848,146.03,146.01,0.2]
[1720973891327,11.05,146.02,146.01,0.2]
[1720973892026,17.8983,146.02,146.01,0.2]
[1720973893235,6.8483,146.02,146.01,0.2]
[1720973893431,17.8983,146.02,146.01,0.2]
[1720973895745,11.05,146.02,146.01,0.2]
[1720973896414,17.8983,146.02,146.01,0.2]
[1720973897410,38.7515,146.06,146.01,0.2]
[1720973897411,6.8465,146.06,146.01,0.2]
[1720973897606,17.8965,146.06,146.01,0.2]
[1720973898425,17.897,146.05,146.01,0.2]
[1720973901446,6.8475,146.04,146.01,0.2]
[1720973909284,17.1133,146.09,146.02,11.05]
[1720973909481,6.8465,146.06,146.03,11.05]
[1720973910288,6.8465,146.06,146.02,11.05]
[1720973911388,6.8471,146.05,146.01,26.8869]
[1720973912585,17.8966,146.06,146.01,26.8869]
[1720973912760,6.8466,146.06,146.02,11.05]
[1720973913094,6.8461,146.07,146.02,11.05]
[1720973913258,6.8461,146.07,146.03,11.05]
[1720973916580,17.8961,146.07,146.01,15.8369]
[1720973916788,17.8961,146.07,146.02,56.05]
[1720973917668,6.8467,146.06,146.02,11.05]
[1720973922001,17.8961,146.07,146.02,11.05]
[1720973923298,11.05,146.06,146.01,26.8869]
[1720973923480,17.8965,146.06,146.01,15.8369]
[1720973923678,17.8965,146.06,146.01,26.8869]
[1720973925511,6.8465,146.06,146.01,26.8869]
[1720973925707,17.8965,146.06,146.01,26.8869]
[1720973926304,11.05,146.06,146.01,26.8869]
[1720973927604,17.8961,146.07,146.02,11.05]
[1720973929907,21.6349,146.1,146.01,15.8369]
[1720973930110,11.05,146.08,146.03,11.05]
[1720973930392,17.8955,146.09,146.04,11.05]
[1720973931803,17.8956,146.08,146.03,11.05]
[1720973933113,11.05,146.08,146.03,11.05]
[1720973933306,16.2367,146.14,146.07,11.05]
[1720973933616,11.05,146.12,146.07,11.05]
[1720973933780,10.39080954,146.11,146.07,11.05]
[1720973933982,3.54640954,146.1,146.07,11.05]
[1720973934180,6.8444,146.11,146.07,11.05]
[1720973934385,6.8448,146.1,146.06,11.05]
[1720973934688,6.8452,146.09,146.06,11.05]
[1720973935621,6.8447,146.1,146.06,11.05]
[1720973941118,6.8447,146.1,146.05,11.05]
[1720973941584,11.05,146.1,146.05,11.05]
[1720973941786,17.8942,146.11,146.06,11.05]
[1720973942097,3.54622829,146.1,146.06,11.05]
[1720973942301,17.8942,146.11,146.06,11.05]
[1720973942815,3.5462725,146.1,146.06,11.05]
[1720973943016,17.8942,146.11,146.06,11.05]
[1720973943313,3.5462733,146.1,146.06,11.05]
[1720973943485,17.8942,146.11,146.06,11.05]
[1720973943692,16.2367,146.14,146.06,11.05]
[1720973943916,11.05,146.11,146.06,11.05]
[1720973944096,17.8941,146.11,146.06,11.05]
[1720973945398,3.5462725,146.1,146.06,11.05]
[1720973945599,17.8941,146.11,146.06,11.05]
[1720973946100,3.5462725,146.1,146.06,11.05]
[1720973946301,17.8941,146.11,146.06,11.05]
[1720973946600,3.5463078,146.1,146.06,16.2459]
[1720973946801,6.8423,146.15,146.09,11.05]
[1720973947113,3.54468139,146.14,146.11,11.05]
[1720973947410,6.8423,146.15,146.11,11.05]
[1720973948815,17.8923,146.15,146.1,11.05]
[1720973951009,6.8437,146.12,146.06,16.2459]
[1720973951210,17.8937,146.12,146.06,16.2459]
[1720973951418,17.8937,146.12,146.07,11.05]
[1720973951604,6.8441,146.11,146.06,16.2459]
[1720973951914,11.05,146.09,146.04,17.5083]
[1720973952208,6.4875,146.14,146.03,26.3465]
[1720973952209,17.8956,146.08,146.03,26.3465]
[1720973952417,17.8956,146.08,146.03,15.2965]
[1720973952711,17.8956,146.08,146.03,26.3465]
[1720973952919,11.05,146.07,146.03,15.2965]
[1720973953500,6.8467,146.06,146.01,0.2]
[1720973953704,6.4875,146.07,146.01,0.2]
[1720973953902,17.8983,146.02,146.01,0.2]
[1720973955810,11.05,146.02,146.01,0.2]
[1720973956927,24.3858,146.02,146.01,0.2]
[1720973957097,35.4358,146.02,146.01,0.2]
[1720973957297,13.3358,146.02,146.01,0.2]
[1720973957493,24.3858,146.02,146.01,0.2]
[1720973958915,6.4875,146.02,146.01,0.2]
[1720973959112,6.848,146.03,146.01,0.2]
[1720973959314,17.8983,146.02,146.01,0.2]
[1720973960028,39.2459,146.05,146.01,0.2]
[1720973960029,17.8969,146.05,146.01,0.2]
[1720973961315,6.8475,146.04,146.01,0.2]
[1720973961505,17.8975,146.04,146.01,0.2]
[1720973963024,6.8483,146.02,146.01,0.2]
[1720973963216,17.8983,146.02,146.01,0.2]
[1720973963827,17.1174,146.06,146.01,0.2]
[1720973964026,17.8982,146.03,146.01,0.2]
[1720973964430,11.05,146.02,146.01,0.2]
[1720973965039,17.8983,146.02,146.01,0.2]
[1720973966334,6.848,146.03,146.01,0.2]
[1720973966634,11.05,146.03,146.01,0.2]
[1720973967322,11.05,146.02,146.01,0.2]
[1720973968337,17.898,146.03,146.01,0.2]
[1720973968918,6.848,146.03,146.01,0.2]
[1720973969258,17.898,146.03,146.01,0.2]
[1720973969419,11.05,146.02,146.01,0.2]
[1720973969812,6.8475,146.04,146.01,0.2]
[1720973970031,11.05,146.02,146.01,0.2]
[1720973979941,17.8983,146.02,146.01,0.2]
[1720973980141,28.9483,146.02,146.01,0.2]
[1720973984581,17.8983,146.02,146.01,0.2]
[1720973985653,62.0983,146.02,146.01,0.2]
[1720973985850,107.0983,146.02,146.01,0.2]
[1720973986168,62.0983,146.02,146.01,0.2]
[1720973986644,107.0983,146.02,146.01,0.2]
[1720973990858,113.5116,146.02,146.01,0.2]
[1720973991059,6.8499,145.99,145.96,0.8532299]
[1720973991276,11.05,145.97,145.96,0.8532299]
[1720973991960,17.9007,145.97,145.96,0.8532299]
[1720973992162,17.9007,145.97,145.96,0.3532299]
[1720973993467,6.8507,145.97,145.96,0.3532299]
[1720973993669,17.9007,145.97,145.96,0.3532299]
[1720973995881,62.9007,145.97,145.96,0.3532299]
[1720974002065,107.1007,145.97,145.96,0.3532299]
[1720974002571,51.8507,145.97,145.96,0.3532299]
[1720974002763,62.9007,145.97,145.96,0.3532299]
[1720974002960,17.9007,145.97,145.96,0.3532299]
[1720974003361,62.9007,145.97,145.96,0.3532299]
[1720974003588,17.9007,145.97,145.96,0.3532299]
[1720974004282,6.8505,145.98,145.96,0.3532299]
[1720974004592,17.9007,145.97,145.96,0.3532299]
[1720974007183,62.9007,145.97,145.96,0.3532299]
[1720974011576,62.9007,145.97,145.91,0.2]
[1720974011577,6.8516,145.96,145.91,0.2]
[1720974011775,11.05,145.94,145.91,0.2]
[1720974014891,47.69607577,145.97,145.91,0.2]
[1720974014892,17.9027,145.93,145.91,0.2]
[1720974015070,71.29307577,145.97,145.91,0.2]
[1720974015071,6.8522,145.94,145.91,0.2]
[1720974015385,11.05,145.92,145.91,0.2]
[1720974015585,11.05,145.93,145.91,0.2]
[1720974016571,6.8513,145.96,145.91,0.2]
[1720974016793,11.05,145.96,145.91,11.25]
[1720974018299,17.9017,145.95,145.91,0.2]
[1720974018493,17.9021,145.94,145.91,0.2]
[1720974018799,11.05,145.93,145.91,0.2]
[1720974020490,6.8518,145.95,145.91,0.2]
[1720974020683,11.05,145.94,145.91,0.2]
[1720974021099,17.9018,145.95,145.91,0.2]
[1720974021301,11.05,145.94,145.91,0.2]
[1720974022193,6.8518,145.95,145.91,0.2]
[1720974022385,17.9018,145.95,145.91,0.2]
[1720974023106,16.3759,146.01,145.92,11.05]
[1720974023291,6.8508,145.97,145.92,11.05]
[1720974023607,17.9008,145.97,145.92,11.05]
[1720974024280,6.8504,145.98,145.92,11.05]
[1720974024480,11.05,145.97,145.92,11.05]
[1720974024710,17.9008,145.97,145.92,11.05]
[1720974025085,6.8503,145.98,145.93,15.5926]
[1720974025294,6.8503,145.98,145.93,26.6426]
[1720974025684,6.8498,145.99,145.93,26.6426]
[1720974026106,11.05,145.98,145.93,26.6426]
[1720974026401,6.8493,146.0,145.94,11.05]
[1720974026578,6.8493,146.0,145.96,11.05]
[1720974027789,6.8498,145.99,145.96,11.05]
[1720974028614,6.8493,146.0,145.96,11.05]
[1720974029595,6.8498,145.99,145.96,11.05]
[1720974029798,6.8498,145.99,145.95,11.05]
[1720974030006,6.8502,145.98,145.95,11.05]
[1720974030307,17.9002,145.98,145.94,6.497]
[1720974030493,6.8509,145.97,145.93,15.5926]
[1720974030682,6.8509,145.97,145.93,26.6426]
[1720974030889,17.9009,145.97,145.93,15.5926]
[1720974031387,11.05,145.97,145.93,15.5926]
[1720974033521,6.8503,145.98,145.93,26.6426]
[1720974033812,17.9003,145.98,145.93,26.6426]
[1720974036617,11.05,145.98,145.93,26.6426]
[1720974038910,6.8499,145.99,145.94,11.05]
[1720974039210,6.8499,145.99,145.93,15.5926]
[1720974039211,2.54393127,146.06,145.98,11.05]
[1720974039409,2.54393127,146.06,145.96,6.0323]
[1720974039410,14.60008905,146.05,146.0,11.05]
[1720974039617,17.897,146.05,146.0,11.05]
[1720974039827,6.8465,146.06,146.01,1.36952151]
[1720974040004,6.846,146.07,146.01,11.05]
[1720974040328,6.846,146.07,146.02,11.05]
[1720974040329,17.896,146.07,146.02,11.05]
[1720974041113,6.8466,146.06,146.02,11.05]
[1720974041415,6.847,146.05,146.01,11.05]
[1720974041612,6.8465,146.06,146.01,11.05]
[1720974041813,11.05,146.07,146.02,11.05]
[1720974042213,6.8447,146.1,146.03,11.05]
[1720974042419,6.8447,146.1,146.05,11.05]
[1720974042420,11.05,146.1,146.05,11.05]
[1720974042715,17.8952,146.09,146.05,11.05]
[1720974042915,6.8455,146.08,146.04,11.05]
[1720974043322,17.8952,146.09,146.04,11.05]
[1720974045003,17.8952,146.09,146.02,6.0323]
[1720974045004,6.846,146.07,146.02,6.0323]
[1720974045199,17.8956,146.08,146.03,11.05]
[1720974046717,6.8456,146.08,146.04,11.05]
[1720974046917,17.8951,146.09,146.04,11.05]
[1720974047933,17.8951,146.09,146.02,6.0323]
[1720974047934,17.8958,146.08,146.02,6.0323]
[1720974048124,17.8958,146.08,146.03,11.05]
[1720974048322,6.8458,146.08,146.04,11.05]
[1720974048716,6.846,146.07,146.03,11.05]
[1720974049222,17.8956,146.08,146.03,11.05]
[1720974053543,21.3501,146.12,145.95,2.72954962]
[1720974053544,21.6478,146.07,145.95,2.72954962]
[1720974053828,21.6478,146.07,145.93,30.5221]
[1720974053829,17.1188,146.04,145.94,11.05]
[1720974054032,11.05,145.99,145.94,11.05]
[1720974054244,17.8998,145.99,145.94,11.05]
[1720974054435,17.9002,145.98,145.93,26.318]
[1720974055148,17.8999,145.99,145.94,11.05]
[1720974055431,11.05,145.99,145.93,15.268]
[1720974055623,11.05,145.99,145.94,11.05]
[1720974056209,17.8998,145.99,145.94,11.05]
[1720974057709,6.8502,145.98,145.94,11.05]
[1720974057912,6.8508,145.97,145.93,15.268]
[1720974058238,11.05,145.97,145.93,15.268]
[1720974058417,17.9007,145.97,145.93,15.268]
[1720974058824,6.8503,145.98,145.93,15.268]
[1720974059138,17.8999,145.99,145.94,11.05]
[1720974059842,6.8503,145.98,145.94,11.05]
[1720974060031,6.8503,145.98,145.93,26.318]
[1720974060337,17.9003,145.98,145.93,26.318]
[1720974060943,17.9003,145.98,145.93,15.268]
[1720974061639,11.05,145.97,145.93,15.268]
[1720974064643,6.8503,145.98,145.93,15.268]
[1720974064644,11.05,145.96,145.93,15.268]
[1720974065743,11.05,145.94,145.91,0.2]
[1720974066429,17.9022,145.94,145.91,0.2]
[1720974066743,11.05,145.94,145.91,0.2]
[1720974068843,11.05,145.92,145.91,0.2]
[1720974069546,6.8515,145.96,145.91,0.2]
[1720974069735,6.8503,145.98,145.92,11.05]
[1720974069933,17.9003,145.98,145.93,11.05]
[1720974070319,17.9007,145.97,145.92,11.05]
[1720974072135,11.05,145.97,145.92,11.05]
[1720974072436,19.08782798,146.03,145.92,11.05]
[1720974072437,11.05,146.0,145.95,11.05]
[1720974072640,17.8996,146.0,145.95,11.05]
[1720974073032,6.8489,146.01,145.95,11.05]
[1720974073220,6.8489,146.01,145.97,11.05]
[1720974074443,6.8495,146.0,145.96,11.05]
[1720974076843,6.8495,146.0,145.93,6.5027]
[1720974077046,6.8495,146.0,145.96,11.05]
[1720974077544,6.8498,145.99,145.93,6.5027]
[1720974077742,6.8498,145.99,145.95,11.05]
[1720974078834,6.8492,146.01,145.95,11.05]
[1720974079139,11.05,146.0,145.95,11.05]
[1720974079324,17.8993,146.0,145.95,11.05]
[1720974080727,6.8493,146.0,145.95,11.05]
[1720974080927,17.8988,146.01,145.96,11.05]
[1720974081222,6.8488,146.01,145.96,11.05]
[1720974081539,6.8488,146.01,145.97,11.05]
[1720974081727,9.26593324,146.06,145.97,11.05]
[1720974081927,11.05,146.02,145.97,11.05]
[1720974082127,45.0,146.05,145.93,6.5027]
[1720974082128,6.848,146.03,145.98,11.05]
[1720974082334,17.898,146.03,145.98,11.05]
[1720974082533,6.8484,146.02,145.98,11.05]
[1720974083021,6.6065,146.09,145.99,15.1016]
[1720974083231,6.8472,146.05,146.0,11.05]
[1720974083531,6.8474,146.04,146.0,11.05]
[1720974083742,6.8481,146.03,145.99,26.1516]
[1720974084134,17.8981,146.03,145.99,15.1016]
[1720974084533,17.8981,146.03,145.93,6.5027]
[1720974084534,6.8484,146.02,145.94,15.1016]
[1720974084849,17.8984,146.02,145.97,11.05]
[1720974085647,11.05,146.02,145.97,11.05]
[1720974087439,11.05,146.02,145.95,45.0]
[1720974087756,11.05,146.02,145.97,11.05]
[1720974088652,11.05,146.02,145.94,15.1016]
[1720974088653,17.8984,146.02,145.94,15.1016]
[1720974088859,11.05,146.01,145.95,20.0]
[1720974089150,11.05,146.01,145.96,11.05]
[1720974089373,11.05,146.01,145.95,31.05]
[1720974091370,11.05,145.99,145.94,26.1516]
[1720974091749,13.2049,146.03,145.94,26.1516]
[1720974091958,6.3566,146.03,145.96,11.05]
[1720974092152,11.05,146.02,145.96,11.05]
[1720974092352,11.05,146.0,145.95,11.05]
[1720974092556,11.05,145.98,145.91,15.3011]
[1720974092866,11.05,145.98,145.93,11.05]
[1720974093242,11.05,145.99,145.94,11.05]
[1720974093457,11.05,146.0,145.95,11.05]
[1720974093649,11.05,146.0,145.91,15.3011]
[1720974093850,11.05,146.0,145.95,11.05]
[1720974094055,11.05,145.99,145.91,15.3011]
[1720974094266,11.05,145.98,145.93,11.05]
[1720974096863,44.2,146.02,145.91,15.3011]
[1720974097066,11.05,145.97,145.91,15.3011]
[1720974097255,11.05,145.97,145.92,11.05]
[1720974097452,11.05,145.98,145.93,11.05]
[1720974097851,11.05,145.97,145.91,15.3011]
[1720974098062,11.05,145.97,145.92,11.05]
[1720974099372,17.9008,145.97,145.92,11.05]
[1720974100360,11.05,145.96,145.91,26.3511]
[1720974100866,11.05,145.96,145.91,15.3011]
[1720974101065,11.05,145.96,145.91,16.67158438]
[1720974101267,11.05,145.96,145.91,27.72158438]
[1720974102774,17.9013,145.96,145.91,0.2]
[1720974103174,6.8523,145.94,145.91,0.2]
[1720974103375,17.9024,145.94,145.91,0.2]
[1720974103583,11.05,145.94,145.91,0.2]
[1720974104287,6.853,145.92,145.91,0.2]
[1720974104589,11.05,145.92,145.91,0.2]
[1720974107786,17.903,145.92,145.91,0.2]
[1720974108004,6.3566,145.97,145.91,0.2]
[1720974108166,6.8517,145.95,145.91,0.2]
[1720974108489,11.05,145.94,145.91,0.2]
[1720974108784,62.9021,145.94,145.91,0.2]
[1720974110788,6.8527,145.93,145.91,0.2]
[1720974111087,17.9027,145.93,145.91,0.2]
[1720974113885,6.853,145.92,145.91,0.2]
[1720974116790,17.9027,145.93,145.91,0.2]
[1720974117465,6.8527,145.93,145.91,0.2]
[1720974117864,17.9022,145.94,145.91,0.2]
[1720974118590,11.05,145.96,145.91,11.25]
[1720974118786,17.1241,146.0,145.91,11.25]
[1720974119002,6.8514,145.96,145.92,11.05]
[1720974119292,17.9014,145.96,145.91,11.25]
[1720974119590,6.8514,145.96,145.92,11.05]
[1720974119786,17.9007,145.97,145.92,11.05]
[1720974119988,6.8507,145.97,145.93,11.05]
[1720974120896,6.8512,145.96,145.92,11.05]
[1720974121576,6.8518,145.95,145.91,0.2]
[1720974121777,6.8518,145.95,145.91,11.25]
[1720974121978,6.8521,145.94,145.91,0.2]
[1720974122182,17.9022,145.94,145.91,0.2]
[1720974124200,11.05,145.93,145.91,0.2]
[1720974124372,11.05,145.92,145.91,0.2]
[1720974124576,11.05,145.93,145.91,0.2]
[1720974127587,17.9022,145.94,145.91,0.2]
[1720974128388,11.05,145.93,145.91,0.2]
[1720974130305,17.9026,145.93,145.91,0.2]
[1720974132504,11.05,145.92,145.91,0.2]
[1720974133776,17.9026,145.93,145.91,0.2]
[1720974134384,17.903,145.92,145.91,0.2]
[1720974134694,6.853,145.92,145.91,0.2]
[1720974134905,17.903,145.92,145.91,0.2]
[1720974135106,6.853,145.92,145.91,0.2]
[1720974135279,17.903,145.92,145.91,0.2]
[1720974136903,62.903,145.92,145.91,0.2]
[1720974137694,6.8526,145.93,145.91,0.2]
[1720974137894,6.853,145.92,145.91,0.2]
[1720974138199,62.903,145.92,145.91,0.2]
[1720974140614,6.855,145.88,145.82,22.7182299]
[1720974140806,11.05,145.87,145.82,33.7682299]
[1720974141428,11.05,145.87,145.82,22.7182299]
[1720974141429,17.9055,145.87,145.82,22.7182299]
[1720974141609,11.05,145.86,145.82,27.2276299]
[1720974142120,17.9055,145.87,145.82,27.2276299]
[1720974142296,11.05,145.86,145.82,16.1776299]
[1720974142689,6.855,145.88,145.82,27.2276299]
[1720974142895,67.437,145.92,145.84,11.05]
[1720974143194,6.855,145.88,145.84,11.05]
[1720974143611,17.905,145.88,145.83,11.05]
[1720974143990,6.8555,145.87,145.83,11.05]
[1720974144388,17.9055,145.87,145.82,27.2276299]
[1720974147030,11.05,145.86,145.82,16.1776299]
[1720974147616,11.05,145.85,145.82,16.1776299]
[1720974149111,6.8554,145.87,145.82,16.1776299]
[1720974149300,11.05,145.86,145.82,16.1776299]
[1720974149503,17.9054,145.87,145.82,27.2276299]
[1720974149910,6.8559,145.86,145.82,27.2276299]
[1720974151319,17.9053,145.88,145.83,11.05]
[1720974151514,11.05,145.88,145.83,11.05]
[1720974151916,17.9051,145.88,145.83,11.05]
[1720974152321,6.8555,145.87,145.82,27.2276299]
[1720974152505,17.9055,145.87,145.82,27.2276299]
[1720974152816,17.9055,145.87,145.82,16.1776299]
[1720974153008,51.083,145.86,145.82,0.8532299]
[1720974153207,17.9072,145.83,145.82,0.8532299]
[1720974153402,62.9072,145.83,145.82,0.8532299]
[1720974157028,51.8572,145.83,145.82,0.8532299]
[1720974157219,62.9072,145.83,145.82,0.8532299]
[1720974158325,51.8572,145.83,145.82,0.8532299]
[1720974158512,62.9072,145.83,145.82,0.8532299]
[1720974160506,51.8572,145.83,145.82,0.8532299]
[1720974160705,62.9072,145.83,145.82,0.8532299]
[1720974164451,73.9572,145.83,145.82,0.8532299]
[1720974164753,51.8572,145.83,145.82,0.8532299]
[1720974164922,97.1936,145.83,145.82,2.99e-05]
[1720974165313,6.86,145.78,145.73,11.05]
[1720974165513,17.91,145.78,145.73,11.05]
[1720974165749,6.8601,145.77,145.73,11.05]
[1720974166124,6.8606,145.76,145.71,21.3077]
[1720974166332,17.9102,145.77,145.72,11.05]
[1720974166529,6.8602,145.77,145.73,11.05]
[1720974166721,17.9097,145.78,145.73,11.05]
[1720974167333,6.8606,145.76,145.72,11.05]
[1720974167633,6.8606,145.76,145.71,21.3077]
[1720974168024,6.8606,145.76,145.72,11.05]
[1720974168227,17.9106,145.76,145.71,32.3577]
[1720974168417,6.8606,145.76,145.72,11.05]
[1720974169145,6.8602,145.77,145.72,11.05]
[1720974169711,17.9097,145.78,145.73,11.05]
[1720974169924,6.8601,145.77,145.73,11.05]
[1720974171335,17.9096,145.78,145.73,11.05]
[1720974171519,6.8596,145.78,145.74,11.05]
[1720974172350,6.8601,145.77,145.74,11.05]
[1720974172541,6.8606,145.76,145.73,11.05]
[1720974173047,6.8602,145.77,145.73,11.05]
[1720974173417,6.8598,145.78,145.73,11.05]
[1720974173634,6.8598,145.78,145.75,11.05]
[1720974173836,6.859,145.8,145.75,11.05]
[1720974174022,17.909,145.8,145.75,11.05]
[1720974174222,6.8592,145.79,145.75,11.05]
[1720974174927,6.083,145.82,145.71,21.3077]
[1720974174928,6.8604,145.77,145.71,21.3077]
[1720974175329,6.8604,145.77,145.73,11.05]
[1720974177846,17.9097,145.78,145.73,11.05]
[1720974178944,11.05,145.78,145.74,11.05]
[1720974179128,17.909,145.8,145.75,11.05]
[1720974179328,6.083,145.82,145.75,11.05]
[1720974179540,11.05,145.8,145.75,11.05]
[1720974180124,17.9087,145.8,145.75,11.05]
[1720974180325,6.858,145.82,145.71,21.3077]
[1720974180624,11.05,145.82,145.77,11.05]
[1720974181530,17.9078,145.82,145.77,11.05]
[1720974181845,11.05,145.83,145.78,11.05]
[1720974182040,17.9075,145.83,145.78,11.05]
[1720974182427,17.9075,145.83,145.77,15.7573]
[1720974182428,6.1537,145.86,145.77,15.7573]
[1720974182627,17.9064,145.85,145.8,11.05]
[1720974183031,6.8564,145.85,145.77,21.8702]
[1720974183260,34.2679,145.91,145.77,21.8702]
[1720974183261,6.1537,145.9,145.81,11.05]
[1720974183439,6.8559,145.86,145.82,11.05]
[1720974184730,6.8563,145.85,145.82,11.05]
[1720974185850,11.05,145.87,145.82,11.05]
[1720974186052,11.05,145.87,145.77,21.8702]
[1720974186251,11.05,145.86,145.81,11.05]
[1720974186631,6.8568,145.84,145.81,11.05]
[1720974187248,17.139,145.87,145.77,21.8702]
[1720974187445,6.8578,145.82,145.77,32.9202]
[1720974187646,6.8578,145.82,145.77,26.8073]
[1720974188546,17.9074,145.83,145.77,26.8073]
[1720974188748,11.05,145.81,145.77,15.7573]
[1720974189151,6.8579,145.82,145.77,26.8073]
[1720974189152,17.9079,145.82,145.77,26.8073]
[1720974190538,11.05,145.81,145.77,15.7573]